[Event "Titled Tuesday Blitz August 08 Late 2023"]
[White "Miladinovic, Igor"]
[Black "Bilan, Danila"]
[WhiteFideId "4203380"]
[BlackFideId "24161918"]
[WhiteElo "2774"]
[BlackElo "2579"]
[Result "0-1"]
[Round "5"]
[TimeControl "180+1"]
[Date "2023.08.08"]
[WhiteClock "0:00:06"]
[BlackClock "0:00:04"]
[Board "50"]

1. d4 {[%clk 0:03:00]}  d5 {[%clk 0:02:57]} 2. Bg5 {[%clk 0:02:57]}  c6 {[%clk 0:02:48]} 3. e3 {[%clk 0:02:57]}  Bf5 {[%clk 0:02:47]} 4. Nf3 {[%clk 0:02:54]}  Qb6 {[%clk 0:02:45]} 5. Qc1 {[%clk 0:02:53]}  e6 {[%clk 0:02:42]} 6. Be2 {[%clk 0:02:53]}  h6 {[%clk 0:02:40]} 7. Bf4 {[%clk 0:02:52]}  Nd7 {[%clk 0:02:37]} 8. O-O {[%clk 0:02:51]}  c5 {[%clk 0:02:33]} 9. c4 {[%clk 0:02:51]}  Ngf6 {[%clk 0:02:23]} 10. Nc3 {[%clk 0:02:49]}  dxc4 {[%clk 0:02:10]} 11. Bxc4 {[%clk 0:02:46]}  cxd4 {[%clk 0:01:58]} 12. Nxd4 {[%clk 0:02:44]}  Bg6 {[%clk 0:01:49]} 13. Na4 {[%clk 0:01:44]}  Qd8 {[%clk 0:01:17]} 14. Nb5 {[%clk 0:01:44]}  e5 {[%clk 0:01:07]} 15. Bxe5 {[%clk 0:01:05]}  Nxe5 {[%clk 0:01:03]} 16. Rd1 {[%clk 0:01:04]}  Qc8 {[%clk 0:00:40]} 17. Bxf7+ {[%clk 0:00:16]}  Kxf7 {[%clk 0:00:34]} 18. Nc7 {[%clk 0:00:17]}  Rb8 {[%clk 0:00:27]} 19. f4 {[%clk 0:00:16]}  Ne8 {[%clk 0:00:11]} 20. fxe5 {[%clk 0:00:12]}  Qxc7 {[%clk 0:00:10]} 21. Qd2 {[%clk 0:00:09]}  Kg8 {[%clk 0:00:07]} 22. Qd5+ {[%clk 0:00:09]}  Kh7 {[%clk 0:00:06]} 23. Rac1 {[%clk 0:00:09]}  Qe7 {[%clk 0:00:04]} 24. e6 {[%clk 0:00:08]}  Nc7 {[%clk 0:00:04]} 25. Qe5 {[%clk 0:00:08]}  Qxe6 {[%clk 0:00:02]} 26. Qxc7 {[%clk 0:00:07]}  Qxe3+ {[%clk 0:00:03]} 27. Kh1 {[%clk 0:00:08]}  Bb4 {[%clk 0:00:02]} 28. Rd7 {[%clk 0:00:05]}  Rhg8 {[%clk 0:00:02]} 29. Rg1 {[%clk 0:00:05]}  Ba5 {[%clk 0:00:02]} 30. Qd6 {[%clk 0:00:04]}  Bb6 {[%clk 0:00:01]} 31. Rxg7+ {[%clk 0:00:04]}  Rxg7 {[%clk 0:00:01]} 32. Rf1 {[%clk 0:00:04]}  Qg5 {[%clk 0:00:02]} 33. Qxg6+ {[%clk 0:00:05]}  Qxg6 {[%clk 0:00:02]} 34. g3 {[%clk 0:00:05]}  Qg5 {[%clk 0:00:02]} 35. Kg2 {[%clk 0:00:06]}  Qd5+ {[%clk 0:00:03]} 36. Kh3 {[%clk 0:00:05]}  Qd3 {[%clk 0:00:03]} 37. Rf4 {[%clk 0:00:05]}  Rbg8 {[%clk 0:00:03]} 38. Rh4 {[%clk 0:00:06]}  Rxg3+ {[%clk 0:00:03]} 39. hxg3 {[%clk 0:00:06]}  Qxg3# {[%clk 0:00:04]} 0-1


[Site "https://www.chess.com"]

[Event "Titled Tuesday Blitz August 08 Late 2023"]
[White "Adan Bermudez, Sergio"]
[Black "Haydon, David L"]
[WhiteFideId "2292726"]
[BlackFideId "415405"]
[WhiteElo "2574"]
[BlackElo "2771"]
[Result "0-1"]
[Round "5"]
[TimeControl "180+1"]
[Date "2023.08.08"]
[WhiteClock "0:01:30"]
[BlackClock "0:01:55"]
[Board "51"]

1. c4 {[%clk 0:02:55]}  c6 {[%clk 0:03:00]} 2. Nc3 {[%clk 0:02:55]}  d5 {[%clk 0:03:01]} 3. e3 {[%clk 0:02:56]}  Nf6 {[%clk 0:03:01]} 4. Nf3 {[%clk 0:02:56]}  e6 {[%clk 0:03:01]} 5. b3 {[%clk 0:02:56]}  Bd6 {[%clk 0:03:02]} 6. Bb2 {[%clk 0:02:57]}  O-O {[%clk 0:03:02]} 7. Qc2 {[%clk 0:02:54]}  Qe7 {[%clk 0:03:02]} 8. Be2 {[%clk 0:02:54]}  a6 {[%clk 0:03:00]} 9. Rg1 {[%clk 0:02:53]}  e5 {[%clk 0:02:59]} 10. h3 {[%clk 0:02:41]}  e4 {[%clk 0:02:58]} 11. Nd4 {[%clk 0:02:25]}  c5 {[%clk 0:02:55]} 12. Nxd5 {[%clk 0:02:23]}  Nxd5 {[%clk 0:02:54]} 13. cxd5 {[%clk 0:02:24]}  cxd4 {[%clk 0:02:52]} 14. Bxd4 {[%clk 0:02:25]}  Nd7 {[%clk 0:02:50]} 15. f3 {[%clk 0:02:02]}  Nf6 {[%clk 0:02:40]} 16. f4 {[%clk 0:01:59]}  Nxd5 {[%clk 0:02:38]} 17. a3 {[%clk 0:01:58]}  Bd7 {[%clk 0:02:33]} 18. b4 {[%clk 0:01:57]}  Rac8 {[%clk 0:02:28]} 19. Qb2 {[%clk 0:01:56]}  f6 {[%clk 0:02:24]} 20. g4 {[%clk 0:01:52]}  Bb5 {[%clk 0:02:14]} 21. Qb3 {[%clk 0:01:43]}  Qf7 {[%clk 0:02:11]} 22. g5 {[%clk 0:01:38]}  Bxe2 {[%clk 0:02:02]} 23. gxf6 {[%clk 0:01:38]}  Bc4 {[%clk 0:01:59]} 24. Rxg7+ {[%clk 0:01:35]}  Qxg7 {[%clk 0:01:58]} 25. fxg7 {[%clk 0:01:36]}  Bxb3 {[%clk 0:01:57]} 26. gxf8=Q+ {[%clk 0:01:30]}  Kxf8 {[%clk 0:01:55]} 0-1


[Site "https://www.chess.com"]

[Event "Titled Tuesday Blitz August 08 Late 2023"]
[White "Principe, Alexander"]
[Black "Aradhya, Garg"]
[WhiteFideId "3804542"]
[BlackFideId "25006746"]
[WhiteElo "2563"]
[BlackElo "2748"]
[Result "1-0"]
[Round "5"]
[TimeControl "180+1"]
[Date "2023.08.08"]
[WhiteClock "0:00:41"]
[BlackClock "0:00:02"]
[Board "54"]

1. e4 {[%clk 0:02:57]}  e5 {[%clk 0:02:59]} 2. Nf3 {[%clk 0:02:57]}  Nc6 {[%clk 0:02:59]} 3. d4 {[%clk 0:02:57]}  exd4 {[%clk 0:02:59]} 4. Nxd4 {[%clk 0:02:58]}  Bc5 {[%clk 0:02:55]} 5. Be3 {[%clk 0:02:58]}  Qf6 {[%clk 0:02:55]} 6. c3 {[%clk 0:02:58]}  Nge7 {[%clk 0:02:54]} 7. Bc4 {[%clk 0:02:58]}  O-O {[%clk 0:02:43]} 8. O-O {[%clk 0:02:57]}  Ne5 {[%clk 0:02:42]} 9. Be2 {[%clk 0:02:57]}  Qg6 {[%clk 0:02:42]} 10. Nd2 {[%clk 0:02:54]}  d5 {[%clk 0:02:42]} 11. f4 {[%clk 0:02:39]}  Ng4 {[%clk 0:02:41]} 12. Bxg4 {[%clk 0:02:39]}  Bxg4 {[%clk 0:02:36]} 13. Qc2 {[%clk 0:02:36]}  dxe4 {[%clk 0:02:34]} 14. Qxe4 {[%clk 0:02:36]}  Qxe4 {[%clk 0:02:02]} 15. Nxe4 {[%clk 0:02:35]}  Bb6 {[%clk 0:02:03]} 16. h3 {[%clk 0:02:30]}  Nd5 {[%clk 0:01:57]} 17. Bf2 {[%clk 0:02:25]}  Bd7 {[%clk 0:01:57]} 18. g3 {[%clk 0:02:21]}  Rfe8 {[%clk 0:01:54]} 19. Rfe1 {[%clk 0:02:18]}  Bg4 {[%clk 0:01:54]} 20. hxg4 {[%clk 0:02:18]}  Kf8 {[%clk 0:01:47]} 21. Nf5 {[%clk 0:02:15]}  Bxf2+ {[%clk 0:01:46]} 22. Kxf2 {[%clk 0:02:13]}  g6 {[%clk 0:01:45]} 23. Nd4 {[%clk 0:02:07]}  Kg7 {[%clk 0:01:43]} 24. Ng5 {[%clk 0:02:02]}  h6 {[%clk 0:01:39]} 25. Ngf3 {[%clk 0:02:02]}  Nf6 {[%clk 0:01:39]} 26. Ne5 {[%clk 0:02:00]}  Re7 {[%clk 0:01:37]} 27. Kf3 {[%clk 0:02:00]}  Rae8 {[%clk 0:01:36]} 28. Nd3 {[%clk 0:02:00]}  Ne4 {[%clk 0:01:34]} 29. Rad1 {[%clk 0:01:52]}  c5 {[%clk 0:01:30]} 30. Nb5 {[%clk 0:01:46]}  a6 {[%clk 0:01:29]} 31. Na3 {[%clk 0:01:45]}  b5 {[%clk 0:01:13]} 32. Ne5 {[%clk 0:01:45]}  Nf6 {[%clk 0:01:12]} 33. c4 {[%clk 0:01:34]}  Rb7 {[%clk 0:01:08]} 34. b3 {[%clk 0:01:32]}  Re6 {[%clk 0:01:02]} 35. f5 {[%clk 0:01:27]}  Re8 {[%clk 0:00:59]} 36. Nd3 {[%clk 0:01:26]}  Rc8 {[%clk 0:00:58]} 37. Nf4 {[%clk 0:01:21]}  Rc6 {[%clk 0:00:44]} 38. Rd8 {[%clk 0:01:20]}  b4 {[%clk 0:00:38]} 39. Nc2 {[%clk 0:01:19]}  a5 {[%clk 0:00:39]} 40. Nd5 {[%clk 0:01:14]}  a4 {[%clk 0:00:34]} 41. Nce3 {[%clk 0:01:04]}  Ra6 {[%clk 0:00:28]} 42. Nxf6 {[%clk 0:01:04]}  Kxf6 {[%clk 0:00:28]} 43. Nd5+ {[%clk 0:01:03]}  Kg5 {[%clk 0:00:29]} 44. f6 {[%clk 0:01:01]}  Re6 {[%clk 0:00:27]} 45. Rxe6 {[%clk 0:00:57]}  fxe6 {[%clk 0:00:27]} 46. Nf4 {[%clk 0:00:56]}  axb3 {[%clk 0:00:27]} 47. axb3 {[%clk 0:00:54]}  Kxf6 {[%clk 0:00:26]} 48. Rf8+ {[%clk 0:00:53]}  Ke5 {[%clk 0:00:26]} 49. Re8 {[%clk 0:00:52]}  Kd4 {[%clk 0:00:25]} 50. Nxe6+ {[%clk 0:00:47]}  Kc3 {[%clk 0:00:25]} 51. Nxc5 {[%clk 0:00:48]}  Rc7 {[%clk 0:00:25]} 52. Re3+ {[%clk 0:00:48]}  Kc2 {[%clk 0:00:24]} 53. Ne6 {[%clk 0:00:47]}  Rf7+ {[%clk 0:00:23]} 54. Ke4 {[%clk 0:00:46]}  Kb2 {[%clk 0:00:17]} 55. Kd5 {[%clk 0:00:44]}  h5 {[%clk 0:00:16]} 56. gxh5 {[%clk 0:00:43]}  gxh5 {[%clk 0:00:17]} 57. c5 {[%clk 0:00:44]}  Rf2 {[%clk 0:00:11]} 58. c6 {[%clk 0:00:44]}  Rd2+ {[%clk 0:00:11]} 59. Nd4 {[%clk 0:00:43]}  Rd1 {[%clk 0:00:11]} 60. c7 {[%clk 0:00:42]}  Rc1 {[%clk 0:00:12]} 61. Kd6 {[%clk 0:00:41]}  Ka3 {[%clk 0:00:05]} 62. Kd7 {[%clk 0:00:41]}  Rd1 {[%clk 0:00:05]} 63. Re4 {[%clk 0:00:40]}  Rc1 {[%clk 0:00:05]} 64. Nc6 {[%clk 0:00:40]}  Rd1+ {[%clk 0:00:02]} 65. Rd4 {[%clk 0:00:41]} 1-0


[Site "https://www.chess.com"]

[Event "Titled Tuesday Blitz August 08 Late 2023"]
[White "Annaberdiyev, Meylis"]
[Black "Loay, Sameer"]
[WhiteFideId "14000563"]
[BlackFideId "8104239"]
[WhiteElo "2688"]
[BlackElo "2528"]
[Result "0-1"]
[Round "5"]
[TimeControl "180+1"]
[Date "2023.08.08"]
[WhiteClock "0:00:00"]
[BlackClock "0:00:20"]
[Board "57"]

1. e4 {[%clk 0:03:00]}  g6 {[%clk 0:03:00]} 2. d4 {[%clk 0:03:00]}  Bg7 {[%clk 0:03:01]} 3. Nf3 {[%clk 0:03:00]}  d6 {[%clk 0:03:01]} 4. Be2 {[%clk 0:03:01]}  Nf6 {[%clk 0:03:00]} 5. Nc3 {[%clk 0:03:00]}  O-O {[%clk 0:03:01]} 6. O-O {[%clk 0:03:01]}  c5 {[%clk 0:03:02]} 7. d5 {[%clk 0:03:00]}  e6 {[%clk 0:03:02]} 8. Bc4 {[%clk 0:02:59]}  exd5 {[%clk 0:03:02]} 9. Nxd5 {[%clk 0:03:00]}  Nxd5 {[%clk 0:02:32]} 10. Bxd5 {[%clk 0:02:59]}  Nc6 {[%clk 0:02:31]} 11. c3 {[%clk 0:02:57]}  Be6 {[%clk 0:02:31]} 12. Bf4 {[%clk 0:02:53]}  Ne5 {[%clk 0:02:27]} 13. Bxe5 {[%clk 0:02:52]}  dxe5 {[%clk 0:02:25]} 14. Bxe6 {[%clk 0:02:51]}  fxe6 {[%clk 0:02:25]} 15. Qxd8 {[%clk 0:02:47]}  Raxd8 {[%clk 0:02:24]} 16. Rfd1 {[%clk 0:02:48]}  Bf6 {[%clk 0:02:20]} 17. Kf1 {[%clk 0:02:48]}  Kf7 {[%clk 0:02:19]} 18. Ke2 {[%clk 0:02:48]}  Ke7 {[%clk 0:02:20]} 19. a4 {[%clk 0:02:43]}  b6 {[%clk 0:02:17]} 20. Nd2 {[%clk 0:02:43]}  Bg7 {[%clk 0:01:48]} 21. Nc4 {[%clk 0:02:42]}  Rxd1 {[%clk 0:01:49]} 22. Rxd1 {[%clk 0:02:41]}  h5 {[%clk 0:01:44]} 23. f3 {[%clk 0:02:28]}  Rb8 {[%clk 0:01:42]} 24. Ra1 {[%clk 0:02:15]}  g5 {[%clk 0:01:30]} 25. h3 {[%clk 0:02:07]}  Rf8 {[%clk 0:01:28]} 26. Ra3 {[%clk 0:01:48]}  g4 {[%clk 0:01:07]} 27. Rb3 {[%clk 0:01:10]}  gxh3 {[%clk 0:00:52]} 28. gxh3 {[%clk 0:01:09]}  Rb8 {[%clk 0:00:47]} 29. Ra3 {[%clk 0:00:45]}  Bf6 {[%clk 0:00:46]} 30. Rb3 {[%clk 0:00:35]}  Kd7 {[%clk 0:00:44]} 31. Ne3 {[%clk 0:00:21]}  Rg8 {[%clk 0:00:34]} 32. a5 {[%clk 0:00:21]}  Kc6 {[%clk 0:00:29]} 33. axb6 {[%clk 0:00:12]}  axb6 {[%clk 0:00:30]} 34. Nc4 {[%clk 0:00:09]}  b5 {[%clk 0:00:29]} 35. Na3 {[%clk 0:00:10]}  Rg2+ {[%clk 0:00:22]} 36. Kf1 {[%clk 0:00:09]}  Rg3 {[%clk 0:00:20]} 37. Ke2 {[%clk 0:00:05]}  Rg2+ {[%clk 0:00:20]} 38. Kf1 {[%clk 0:00:05]}  Rg3 {[%clk 0:00:21]} 39. Ke2 {[%clk 0:00:05]}  Rxh3 {[%clk 0:00:21]} 40. Rxb5 {[%clk 0:00:05]}  Rh2+ {[%clk 0:00:22]} 41. Kf1 {[%clk 0:00:05]}  Bh4 {[%clk 0:00:22]} 42. Rb8 {[%clk 0:00:05]}  Rf2+ {[%clk 0:00:22]} 43. Kg1 {[%clk 0:00:04]}  Rxf3 {[%clk 0:00:23]} 44. Nc4 {[%clk 0:00:05]}  Bg3 {[%clk 0:00:22]} 45. Re8 {[%clk 0:00:03]}  Kd7 {[%clk 0:00:21]} 46. Rh8 {[%clk 0:00:03]}  Bf4 {[%clk 0:00:22]} 47. Rxh5 {[%clk 0:00:00]}  Rd3 {[%clk 0:00:20]} 0-1


[Site "https://www.chess.com"]

[Event "Titled Tuesday Blitz August 08 Late 2023"]
[White "Golubev, Mikhail"]
[Black "KarolKacprzak"]
[WhiteFideId "14100983"]
[WhiteElo "2613"]
[BlackElo "2687"]
[Result "1-0"]
[Round "5"]
[TimeControl "180+1"]
[Date "2023.08.08"]
[WhiteClock "0:00:41"]
[BlackClock "0:00:51"]
[Board "58"]

1. e4 {[%clk 0:03:00]}  c5 {[%clk 0:02:57]} 2. Nf3 {[%clk 0:03:00]}  d6 {[%clk 0:02:57]} 3. d4 {[%clk 0:03:01]}  cxd4 {[%clk 0:02:58]} 4. Nxd4 {[%clk 0:03:01]}  Nf6 {[%clk 0:02:59]} 5. Nc3 {[%clk 0:03:01]}  a6 {[%clk 0:02:59]} 6. Bc4 {[%clk 0:03:01]}  e6 {[%clk 0:02:58]} 7. O-O {[%clk 0:03:00]}  Be7 {[%clk 0:02:41]} 8. Bb3 {[%clk 0:03:00]}  b5 {[%clk 0:02:40]} 9. Qf3 {[%clk 0:02:58]}  Qb6 {[%clk 0:02:40]} 10. Be3 {[%clk 0:02:55]}  Qb7 {[%clk 0:02:37]} 11. Qg3 {[%clk 0:02:53]}  Nbd7 {[%clk 0:02:34]} 12. Rad1 {[%clk 0:02:46]}  b4 {[%clk 0:02:26]} 13. Nf5 {[%clk 0:02:23]}  exf5 {[%clk 0:02:02]} 14. Qxg7 {[%clk 0:02:19]}  Rf8 {[%clk 0:02:01]} 15. Nd5 {[%clk 0:02:18]}  Nxe4 {[%clk 0:01:49]} 16. Nxe7 {[%clk 0:01:43]}  Kxe7 {[%clk 0:01:50]} 17. Rfe1 {[%clk 0:01:18]}  Qb5 {[%clk 0:01:28]} 18. Bg5+ {[%clk 0:00:56]}  Ke8 {[%clk 0:01:28]} 19. Rxd6 {[%clk 0:00:54]}  Qc5 {[%clk 0:01:10]} 20. Bxf7+ {[%clk 0:00:48]}  Rxf7 {[%clk 0:00:51]} 21. Qg8+ {[%clk 0:00:41]} 1-0


[Site "https://www.chess.com"]

[Event "Titled Tuesday Blitz August 08 Late 2023"]
[White "MKlose11"]
[Black "Ansh M Shah"]
[BlackFideId "25033379"]
[WhiteElo "2666"]
[BlackElo "2515"]
[Result "1/2-1/2"]
[Round "5"]
[TimeControl "180+1"]
[Date "2023.08.08"]
[WhiteClock "0:00:08"]
[BlackClock "0:00:06"]
[Board "60"]

1. e4 {[%clk 0:02:55]}  c5 {[%clk 0:02:58]} 2. Nc3 {[%clk 0:02:53]}  Nc6 {[%clk 0:02:59]} 3. g3 {[%clk 0:02:54]}  g6 {[%clk 0:02:59]} 4. d3 {[%clk 0:02:54]}  Bg7 {[%clk 0:02:59]} 5. Bg2 {[%clk 0:02:55]}  d6 {[%clk 0:03:00]} 6. Be3 {[%clk 0:02:55]}  Nf6 {[%clk 0:03:00]} 7. Qd2 {[%clk 0:02:56]}  O-O {[%clk 0:03:01]} 8. h3 {[%clk 0:02:56]}  Rb8 {[%clk 0:03:01]} 9. Bh6 {[%clk 0:02:55]}  b5 {[%clk 0:03:01]} 10. Bxg7 {[%clk 0:02:56]}  Kxg7 {[%clk 0:03:01]} 11. f4 {[%clk 0:02:54]}  Nd4 {[%clk 0:03:01]} 12. Nd1 {[%clk 0:02:51]}  b4 {[%clk 0:03:01]} 13. Ne3 {[%clk 0:02:50]}  a5 {[%clk 0:02:59]} 14. Nf3 {[%clk 0:02:47]}  Nh5 {[%clk 0:02:44]} 15. Qf2 {[%clk 0:02:37]}  Nc6 {[%clk 0:02:26]} 16. O-O {[%clk 0:02:36]}  Bb7 {[%clk 0:02:24]} 17. Kh2 {[%clk 0:02:30]}  Qc7 {[%clk 0:02:17]} 18. Nh4 {[%clk 0:02:29]}  Nf6 {[%clk 0:02:15]} 19. Kg1 {[%clk 0:02:22]}  Nd4 {[%clk 0:02:03]} 20. g4 {[%clk 0:02:21]}  Ba6 {[%clk 0:01:43]} 21. Rad1 {[%clk 0:02:16]}  a4 {[%clk 0:01:40]} 22. Rfe1 {[%clk 0:02:08]}  a3 {[%clk 0:01:36]} 23. bxa3 {[%clk 0:01:48]}  bxa3 {[%clk 0:01:37]} 24. e5 {[%clk 0:01:48]}  dxe5 {[%clk 0:01:35]} 25. fxe5 {[%clk 0:01:49]}  Nd7 {[%clk 0:01:29]} 26. Nd5 {[%clk 0:01:49]}  Qd8 {[%clk 0:01:27]} 27. c3 {[%clk 0:01:48]}  Ne6 {[%clk 0:01:15]} 28. Qe3 {[%clk 0:01:38]}  Bb7 {[%clk 0:01:09]} 29. Rb1 {[%clk 0:01:29]}  Bxd5 {[%clk 0:01:04]} 30. Bxd5 {[%clk 0:01:30]}  Rxb1 {[%clk 0:00:55]} 31. Rxb1 {[%clk 0:01:29]}  Qc7 {[%clk 0:00:55]} 32. Bxe6 {[%clk 0:01:26]}  fxe6 {[%clk 0:00:55]} 33. Re1 {[%clk 0:01:20]}  c4 {[%clk 0:00:50]} 34. d4 {[%clk 0:01:18]}  Nb6 {[%clk 0:00:50]} 35. Rf1 {[%clk 0:01:01]}  Rxf1+ {[%clk 0:00:46]} 36. Kxf1 {[%clk 0:01:01]}  Nd5 {[%clk 0:00:45]} 37. Qc1 {[%clk 0:00:51]}  Qb8 {[%clk 0:00:34]} 38. Qxa3 {[%clk 0:00:36]}  Qf8+ {[%clk 0:00:33]} 39. Kg1 {[%clk 0:00:30]}  Qf4 {[%clk 0:00:26]} 40. Ng2 {[%clk 0:00:24]}  Qg3 {[%clk 0:00:22]} 41. h4 {[%clk 0:00:12]}  Qxg4 {[%clk 0:00:15]} 42. Qb2 {[%clk 0:00:12]}  Nf4 {[%clk 0:00:13]} 43. Qd2 {[%clk 0:00:07]}  Nd5 {[%clk 0:00:05]} 44. a4 {[%clk 0:00:06]}  Qg3 {[%clk 0:00:03]} 45. a5 {[%clk 0:00:05]}  Qxc3 {[%clk 0:00:03]} 46. Qxc3 {[%clk 0:00:04]}  Nxc3 {[%clk 0:00:04]} 47. Ne3 {[%clk 0:00:04]}  Nb5 {[%clk 0:00:03]} 48. Nxc4 {[%clk 0:00:04]}  Nxd4 {[%clk 0:00:04]} 49. a6 {[%clk 0:00:04]}  Nc6 {[%clk 0:00:04]} 50. Kf2 {[%clk 0:00:04]}  h6 {[%clk 0:00:04]} 51. Kf3 {[%clk 0:00:03]}  g5 {[%clk 0:00:05]} 52. hxg5 {[%clk 0:00:04]}  hxg5 {[%clk 0:00:05]} 53. Kg4 {[%clk 0:00:05]}  Kg6 {[%clk 0:00:06]} 54. Na5 {[%clk 0:00:05]}  Nxe5+ {[%clk 0:00:05]} 55. Kg3 {[%clk 0:00:05]}  Nd7 {[%clk 0:00:06]} 56. a7 {[%clk 0:00:05]}  Nb6 {[%clk 0:00:06]} 57. Nc4 {[%clk 0:00:06]}  Na8 {[%clk 0:00:07]} 58. Kg4 {[%clk 0:00:06]}  Kf6 {[%clk 0:00:06]} 59. Ne3 {[%clk 0:00:06]}  e5 {[%clk 0:00:06]} 60. Nd5+ {[%clk 0:00:05]}  Ke6 {[%clk 0:00:06]} 61. Ne3 {[%clk 0:00:06]}  Kf6 {[%clk 0:00:05]} 62. Nd5+ {[%clk 0:00:05]}  Ke6 {[%clk 0:00:06]} 63. Ne3 {[%clk 0:00:06]}  Kd6 {[%clk 0:00:06]} 64. Kxg5 {[%clk 0:00:06]}  Kc5 {[%clk 0:00:06]} 65. Kf5 {[%clk 0:00:06]}  Kd4 {[%clk 0:00:06]} 66. Ng4 {[%clk 0:00:06]}  e4 {[%clk 0:00:06]} 67. Ke6 {[%clk 0:00:06]}  Kc5 {[%clk 0:00:04]} 68. Kxe7 {[%clk 0:00:05]}  Kb6 {[%clk 0:00:04]} 69. Ke6 {[%clk 0:00:06]}  Kxa7 {[%clk 0:00:05]} 70. Ke5 {[%clk 0:00:06]}  Nc7 {[%clk 0:00:06]} 71. Ne3 {[%clk 0:00:07]}  Nb5 {[%clk 0:00:06]} 72. Kxe4 {[%clk 0:00:08]} 1/2-1/2


[Site "https://www.chess.com"]

[Event "Titled Tuesday Blitz August 08 Late 2023"]
[White "Filipets, Egor"]
[Black "Zeynalli, Rashad"]
[WhiteFideId "13503928"]
[BlackFideId "13403320"]
[WhiteElo "2504"]
[BlackElo "2649"]
[Result "1-0"]
[Round "5"]
[TimeControl "180+1"]
[Date "2023.08.08"]
[WhiteClock "0:00:29"]
[BlackClock "0:00:21"]
[Board "62"]

1. c4 {[%clk 0:03:00]}  e6 {[%clk 0:02:59]} 2. Nf3 {[%clk 0:03:00]}  d5 {[%clk 0:02:59]} 3. g3 {[%clk 0:03:01]}  Nf6 {[%clk 0:02:59]} 4. Bg2 {[%clk 0:03:02]}  d4 {[%clk 0:02:59]} 5. O-O {[%clk 0:03:03]}  Be7 {[%clk 0:02:57]} 6. e3 {[%clk 0:03:04]}  Nc6 {[%clk 0:02:57]} 7. exd4 {[%clk 0:02:59]}  Nxd4 {[%clk 0:02:58]} 8. Nc3 {[%clk 0:02:59]}  O-O {[%clk 0:02:56]} 9. d3 {[%clk 0:02:58]}  c5 {[%clk 0:02:17]} 10. Nxd4 {[%clk 0:02:55]}  cxd4 {[%clk 0:02:17]} 11. Ne2 {[%clk 0:02:51]}  e5 {[%clk 0:02:11]} 12. f4 {[%clk 0:02:47]}  e4 {[%clk 0:02:11]} 13. dxe4 {[%clk 0:02:44]}  d3 {[%clk 0:02:11]} 14. Nc3 {[%clk 0:02:44]}  Ng4 {[%clk 0:01:48]} 15. Nd5 {[%clk 0:02:40]}  Bc5+ {[%clk 0:01:41]} 16. Kh1 {[%clk 0:02:40]}  Nf2+ {[%clk 0:01:34]} 17. Rxf2 {[%clk 0:02:40]}  Bxf2 {[%clk 0:01:35]} 18. Qxd3 {[%clk 0:02:41]}  Be6 {[%clk 0:01:31]} 19. Bd2 {[%clk 0:02:30]}  Rc8 {[%clk 0:01:27]} 20. Bc3 {[%clk 0:02:29]}  Re8 {[%clk 0:01:20]} 21. Rd1 {[%clk 0:02:11]}  Bc5 {[%clk 0:01:09]} 22. h3 {[%clk 0:02:05]}  Qd7 {[%clk 0:00:57]} 23. g4 {[%clk 0:01:58]}  Bxg4 {[%clk 0:00:54]} 24. hxg4 {[%clk 0:01:56]}  Qxg4 {[%clk 0:00:51]} 25. Kh2 {[%clk 0:01:52]}  Rc6 {[%clk 0:00:37]} 26. Rf1 {[%clk 0:01:09]}  Rh6+ {[%clk 0:00:36]} 27. Bh3 {[%clk 0:01:09]}  Rxe4 {[%clk 0:00:31]} 28. Rf2 {[%clk 0:00:29]}  Rxh3+ {[%clk 0:00:22]} 29. Qxh3 {[%clk 0:00:29]}  Qxh3+ {[%clk 0:00:23]} 30. Kxh3 {[%clk 0:00:29]}  Be3 {[%clk 0:00:21]} 31. Re2 {[%clk 0:00:29]} 1-0


[Site "https://www.chess.com"]

[Event "Titled Tuesday Blitz August 08 Late 2023"]
[White "Kleiman, Jake"]
[Black "szachmistrz2500"]
[WhiteFideId "2020041"]
[WhiteElo "2633"]
[BlackElo "2460"]
[Result "0-1"]
[Round "5"]
[TimeControl "180+1"]
[Date "2023.08.08"]
[WhiteClock "0:00:09"]
[BlackClock "0:00:18"]
[Board "64"]

1. Nf3 {[%clk 0:02:58]}  c5 {[%clk 0:02:58]} 2. g3 {[%clk 0:02:59]}  Nc6 {[%clk 0:02:57]} 3. Bg2 {[%clk 0:03:00]}  g6 {[%clk 0:02:57]} 4. O-O {[%clk 0:03:01]}  Bg7 {[%clk 0:02:58]} 5. d3 {[%clk 0:03:02]}  e5 {[%clk 0:02:54]} 6. c4 {[%clk 0:03:01]}  Nge7 {[%clk 0:02:54]} 7. Nc3 {[%clk 0:03:02]}  d5 {[%clk 0:02:51]} 8. cxd5 {[%clk 0:03:01]}  Nxd5 {[%clk 0:02:52]} 9. Bd2 {[%clk 0:03:02]}  O-O {[%clk 0:02:46]} 10. Rc1 {[%clk 0:03:01]}  Nde7 {[%clk 0:02:40]} 11. a3 {[%clk 0:02:59]}  Be6 {[%clk 0:02:33]} 12. Ne4 {[%clk 0:02:48]}  b6 {[%clk 0:02:32]} 13. b4 {[%clk 0:02:48]}  cxb4 {[%clk 0:02:24]} 14. axb4 {[%clk 0:02:49]}  h6 {[%clk 0:02:04]} 15. b5 {[%clk 0:02:46]}  Na5 {[%clk 0:02:01]} 16. Bxa5 {[%clk 0:02:39]}  bxa5 {[%clk 0:02:01]} 17. Nc5 {[%clk 0:02:38]}  Bd5 {[%clk 0:02:00]} 18. Qa4 {[%clk 0:02:36]}  Rb8 {[%clk 0:01:26]} 19. Rc2 {[%clk 0:02:15]}  Nc8 {[%clk 0:01:19]} 20. Rb1 {[%clk 0:01:36]}  Nd6 {[%clk 0:01:15]} 21. Nd2 {[%clk 0:01:26]}  Bxg2 {[%clk 0:01:09]} 22. Kxg2 {[%clk 0:01:27]}  Qb6 {[%clk 0:01:09]} 23. Nde4 {[%clk 0:01:16]}  Nxe4 {[%clk 0:01:08]} 24. Qxe4 {[%clk 0:01:15]}  Rfd8 {[%clk 0:01:03]} 25. Na4 {[%clk 0:01:03]}  Qd6 {[%clk 0:00:55]} 26. Rc6 {[%clk 0:00:51]}  Qa3 {[%clk 0:00:55]} 27. Rc3 {[%clk 0:00:38]}  Qa2 {[%clk 0:00:54]} 28. Rb2 {[%clk 0:00:30]}  Qa1 {[%clk 0:00:54]} 29. Rc4 {[%clk 0:00:26]}  Qd1 {[%clk 0:00:44]} 30. Nc3 {[%clk 0:00:22]}  Qa1 {[%clk 0:00:43]} 31. Ra2 {[%clk 0:00:21]}  Qe1 {[%clk 0:00:41]} 32. Rxa5 {[%clk 0:00:20]}  Rd4 {[%clk 0:00:41]} 33. Qc6 {[%clk 0:00:19]}  e4 {[%clk 0:00:22]} 34. Rxd4 {[%clk 0:00:16]}  Bxd4 {[%clk 0:00:21]} 35. Nxe4 {[%clk 0:00:12]}  Qxa5 {[%clk 0:00:20]} 36. Qd6 {[%clk 0:00:13]}  Qb6 {[%clk 0:00:19]} 37. Qf4 {[%clk 0:00:11]}  Bg7 {[%clk 0:00:19]} 38. e3 {[%clk 0:00:10]}  Qxb5 {[%clk 0:00:19]} 39. d4 {[%clk 0:00:10]}  Qd7 {[%clk 0:00:19]} 40. Qf3 {[%clk 0:00:11]}  Re8 {[%clk 0:00:19]} 41. Nc5 {[%clk 0:00:11]}  Qc7 {[%clk 0:00:18]} 42. Qd5 {[%clk 0:00:11]}  Rd8 {[%clk 0:00:18]} 43. Qc4 {[%clk 0:00:11]}  Bf8 {[%clk 0:00:17]} 44. h4 {[%clk 0:00:10]}  Bxc5 {[%clk 0:00:17]} 45. dxc5 {[%clk 0:00:09]}  Rc8 {[%clk 0:00:18]} 0-1


[Site "https://www.chess.com"]